[Event "III Menorca Open-A 2024"]
[Site "Ciutadella Menorca"]
[Date "2024.04.07"]
[Round "9.16"]
[White "Agmanov, Zhandos"]
[Black "Arizmendi Martinez, Julen Luis"]
[Result "1/2-1/2"]
[ECO "B11"]
[WhiteElo "2458"]
[BlackElo "2521"]
[Annotator "TA"]
[PlyCount "58"]
[EventDate "2024.04.02"]
[EventType "swiss"]
[EventCountry "ESP"]
[SourceTitle "playchess.com"]
[Source "ChessBase"]
[SourceQuality "1"]
[TimeControl "5400+30"]

{[%evp 10,58,15,25,30,24,29,31,28,0,23,19,13,-16,0,-37,0,-93,-96,-122,-96,-135,-96,-91,-90,-162,-158,-150,-55,-61,-50,-50,-50,-37,-31,-39,-27,-33,0,0,0,0,0,0,0,0,0,0,-2,-2,-2]} 1. e4 {[%emt 1:31:00]} c6 {[%emt 0:00:19]} 2. Nf3 {[%emt 0:00:57]} d5 {[%emt 0:00:58]} 3. Nc3 {[%emt 0:00:18]} dxe4 {[%emt 0:12:28]} 4. Nxe4 {[%emt 0:00:07]} Nf6 {[%emt 0:00:05]} 5. Qe2 {[%emt 0:00:23]} Nxe4 {[%emt 0:00:53]} 6. Qxe4 {[%emt 0:00:06]} Be6 {[%emt 0:00:16]} 7. b3 {[%emt 0:04:14]} Nd7 {[%emt 0:08:20]} 8. Bb2 {[%emt 0:01:14]} Nf6 {[%emt 0:14:19] White is slightly better.} 9. Qa4 {[%emt 0:26:16]} Bf5 {[%emt 0:09:29]} 10. Ne5 {[%emt 0:05:47]} h5 {[%emt 0:11:58]} 11. O-O-O {[%emt 0:10:24]} e6 {[%emt 0:05:39]} 12. f3 {[%emt 0:07:11]} (12. Nxc6 $5 bxc6 13. Bxf6 (13. Qxc6+ $2 {loses.} Nd7 $19) 13... gxf6 14. Qxc6+ Ke7 15. Qb7+ Kd6 16. Qb4+ Kc7 17. Qa5+ Kd7 18. Qa4+ Kc8 19. Ba6+ Kb8 (19... Kc7 20. Qa5+ Kc6 21. Qa4+ Kd6 22. Qf4+ Ke7 23. Qb4+ Kd7 24. Qa4+ Kc7 25. Qa5+ Kd6 26. Qb4+ Kd7 27. Qa4+ Kc7 $11) 20. d4 $17) 12... Nd5 {[%emt 0:05:48]} 13. a3 {[%emt 0:15:18] Wards off Nb4} (13. g4 $11 {keeps the balance.} Bh7 14. g5) 13... f6 $17 {[%emt 0:04:43]} 14. Nd3 {[%emt 0:03:18]} b5 {[%emt 0:02:42]} 15. Qd4 {[%emt 0:03:41]} Qb6 {[%emt 0:03:26]} 16. Qxb6 {[%emt 0:01:49]} axb6 {[%emt 0:00:14]} 17. c4 {[%emt 0:00:09]} (17. b4 $17) 17... bxc4 $19 {[%emt 0:09:02]} 18. bxc4 {[%emt 0:00:01]} Bxd3 {[%emt 0:02:07]} (18... Nc7 $17 19. Kc2 h4 (19... Bxa3 $2 20. Ra1 $19)) 19. Bxd3 $15 {[%emt 0:00:11]} Nf4 {[%emt 0:00:01]} 20. Be4 {[%emt 0:00:49]} Kd7 {[%emt 0:02:00]} (20... Nxg2 $2 {too greedy.} 21. Bxc6+ Kf7 22. Bxa8 $18) 21. g3 {[%emt 0:01:37]} Ne2+ {[%emt 0:00:09]} 22. Kc2 {[%emt 0:02:58] [#] Bd3 would now be deadly.} Bxa3 {[%emt 0:00:14]} 23. Ba1 {[%emt 0:01:12] A strong pair of Bishops. White is weak on the dark squares} e5 {[%emt 0:03:32]} (23... Bc5 {with more complications.} 24. d4 Ra2+ 25. Kb3 Ra3+) 24. d4 {[%emt 0:00:08] Dodges Bc5. The position is equal.} Nxd4+ {[%emt 0:01:55]} 25. Bxd4 {[%emt 0:00:05]} exd4 {[%emt 0:00:07]} 26. Rxd4+ {[%emt 0:00:04]} Kc7 {[%emt 0:00:11] Hoping for ...Bc5.} 27. Rhd1 {[%emt 0:00:12]} Rhd8 {[%emt 0:01:16] Against Rd7+} 28. Rxd8 {[%emt 0:00:10]} Rxd8 {[%emt 0:00:07]} 29. Rxd8 {[%emt 0:00:31]} Kxd8 {[%emt 0:00:02] Weighted Error Value: White=0.23 (precise) /Black=0.13 (very precise) .  Mistake:       	White=2     	Black=1      Inaccurate:     	White=3     	Black=2      OK:         	White=4     	Black=8      Best:        	White=4     	Black=3} 1/2-1/2

[Event "III Menorca Open-A 2024"]
[Site "Ciutadella Menorca"]
[Date "2024.04.07"]
[Round "9.17"]
[White "Iermito, Sebastian"]
[Black "Koelle, Tobias"]
[Result "1/2-1/2"]
[ECO "D02"]
[WhiteElo "2511"]
[BlackElo "2467"]
[Annotator "ChessBase"]
[PlyCount "241"]
[EventDate "2024.04.02"]
[EventType "swiss"]
[EventCountry "ESP"]
[SourceTitle "playchess.com"]
[Source "ChessBase"]
[SourceQuality "1"]
[TimeControl "5400+30"]

1. Nf3 {[%emt 0:00:02]} d5 {[%emt 0:00:12]} 2. g3 {[%emt 0:00:04]} Nc6 {[%emt 0:00:07]} 3. d4 {[%emt 0:00:08]} Bf5 {[%emt 0:00:10]} 4. Bg2 {[%emt 0:00:11]} Nb4 {[%emt 0:00:22]} 5. Na3 {[%emt 0:00:08]} e6 {[%emt 0:00:19]} 6. Nh4 {[%emt 0:00:34]} Be4 {[%emt 0:00:28]} 7. f3 {[%emt 0:00:31]} Bg6 {[%emt 0:00:22]} 8. c3 {[%emt 0:00:31]} Nc6 {[%emt 0:00:06]} 9. Qb3 {[%emt 0:01:03]} a6 {[%emt 0:02:00]} 10. Nxg6 {[%emt 0:04:50]} hxg6 {[%emt 0:00:22]} 11. e4 {[%emt 0:00:45]} b5 {[%emt 0:08:21]} 12. Nb1 {[%emt 0:01:22]} Nf6 {[%emt 0:03:33]} 13. Nd2 {[%emt 0:17:25]} Be7 {[%emt 0:07:14]} 14. e5 {[%emt 0:04:25]} Nd7 {[%emt 0:00:56]} 15. Qc2 {[%emt 0:01:14]} Na5 {[%emt 0:00:53]} 16. b4 {[%emt 0:01:09]} Nc4 {[%emt 0:00:20]} 17. Nxc4 {[%emt 0:02:22]} bxc4 {[%emt 0:00:28]} 18. f4 {[%emt 0:08:27]} a5 {[%emt 0:01:50]} 19. b5 {[%emt 0:01:47]} a4 {[%emt 0:02:44]} 20. O-O {[%emt 0:01:34]} Qb8 {[%emt 0:04:24]} 21. g4 {[%emt 0:03:09]} Qxb5 {[%emt 0:00:55]} 22. f5 {[%emt 0:00:29]} gxf5 {[%emt 0:02:06]} 23. gxf5 {[%emt 0:00:01]} Qc6 {[%emt 0:02:20]} 24. Qd1 {[%emt 0:09:02]} exf5 {[%emt 0:19:55]} 25. Rf2 {[%emt 0:41:47]} f4 26. Rxf4 {[%emt 0:00:00]} g6 {[%emt 0:04:21]} 27. Rf1 {[%emt 0:00:00]} f5 {[%emt 0:04:16]} 28. exf6 {[%emt 0:00:00]} Nxf6 {[%emt 0:00:15]} 29. Bg5 {[%emt 0:00:00]} O-O {[%emt 0:06:48]} 30. Qc2 {[%emt 0:00:00]} Kg7 {[%emt 0:00:47]} 31. Rae1 {[%emt 0:00:00]} Rae8 {[%emt 0:02:19]} 32. Qc1 {[%emt 0:00:00]} Kg8 {[%emt 0:06:08]} 33. Re5 {[%emt 0:00:00]} Qd7 {[%emt 0:02:44]} 34. Bh6 {[%emt 0:00:00]} Rf7 {[%emt 0:01:44]} 35. Qg5 {[%emt 0:00:00]} Qg4 {[%emt 0:04:55]} 36. Qxg4 {[%emt 0:00:00]} Nxg4 {[%emt 0:00:02]} 37. Rxf7 {[%emt 0:00:00]} Nxe5 {[%emt 0:00:07]} 38. Rg7+ {[%emt 0:00:00]} Kh8 {[%emt 0:00:01]} 39. dxe5 {[%emt 0:02:40]} Bf8 {[%emt 0:00:01]} 40. Rxg6 {[%emt 0:00:26]} Kh7 {[%emt 0:00:01]} 41. Rc6 {[%emt 0:01:48]} Bxh6 {[%emt 0:00:02]} 42. Bxd5 {[%emt 0:00:53]} Rxe5 {[%emt 0:00:21]} 43. Rxc7+ {[%emt 0:00:11]} Bg7 {[%emt 0:00:19]} 44. Bxc4 {[%emt 0:00:10]} Re3 {[%emt 0:00:08]} 45. Ra7 {[%emt 0:00:48]} Rxc3 {[%emt 0:00:48]} 46. Rxa4 {[%emt 0:00:01]} Be5 {[%emt 0:00:53]} 47. Bf1 {[%emt 0:01:08]} Rc1 {[%emt 0:00:44]} 48. h3 {[%emt 0:00:24]} Kg6 {[%emt 0:00:20]} 49. Rg4+ {[%emt 0:00:29]} Kf5 {[%emt 0:00:21]} 50. a4 {[%emt 0:00:26]} Ra1 {[%emt 0:00:43]} 51. Rc4 {[%emt 0:00:53]} Ke6 {[%emt 0:02:41]} 52. Kf2 {[%emt 0:01:14]} Kd5 {[%emt 0:00:18]} 53. Rb4 {[%emt 0:00:47]} Bd4+ {[%emt 0:00:28]} 54. Kg2 {[%emt 0:00:14]} Bc5 {[%emt 0:02:07]} 55. Rg4 {[%emt 0:00:35]} Ra2+ {[%emt 0:03:30]} 56. Kg3 {[%emt 0:00:06]} Ra3+ {[%emt 0:00:45]} 57. Kg2 {[%emt 0:01:25]} Ra2+ {[%emt 0:00:31]} 58. Kg3 {[%emt 0:00:01]} Ra3+ {[%emt 0:00:05]} 59. Kh4 {[%emt 0:00:07]} Bd4 {[%emt 0:00:07]} 60. Bg2+ {[%emt 0:01:18]} Kc5 {[%emt 0:01:03]} 61. Rg5+ {[%emt 0:00:12]} Kb4 {[%emt 0:01:49]} 62. Rb5+ {[%emt 0:00:15]} Kxa4 {[%emt 0:00:26]} 63. Bc6 {[%emt 0:00:14]} Rd3 {[%emt 0:00:33]} 64. Kg4 {[%emt 0:01:08]} Ka3 {[%emt 0:00:12]} 65. h4 {[%emt 0:00:24]} Rb3 {[%emt 0:01:12]} 66. Rd5 {[%emt 0:00:34]} Rb4 {[%emt 0:00:33]} 67. h5 {[%emt 0:00:49]} Kb3 {[%emt 0:00:36]} 68. Kf5 {[%emt 0:00:18]} Kc3 {[%emt 0:00:45]} 69. h6 {[%emt 0:00:29]} Rb1 {[%emt 0:00:44]} 70. Rd8 {[%emt 0:00:37]} Rf1+ {[%emt 0:00:12]} 71. Kg4 {[%emt 0:00:45]} Rg1+ {[%emt 0:01:35]} 72. Kf5 {[%emt 0:00:33]} Rf1+ {[%emt 0:00:16]} 73. Kg4 {[%emt 0:00:07]} Rg1+ {[%emt 0:00:01]} 74. Kf4 {[%emt 0:00:45]} Rd1 {[%emt 0:01:08]} 75. Rc8 {[%emt 0:00:35]} Ra1 {[%emt 0:02:26]} 76. h7 {[%emt 0:00:24]} Ra7 {[%emt 0:00:51]} 77. Be4+ {[%emt 0:00:31]} Kb4 {[%emt 0:00:15]} 78. h8=Q {[%emt 0:00:36]} Bxh8 {[%emt 0:00:02]} 79. Rxh8 {[%emt 0:00:02]} Rg7 {[%emt 0:00:35]} 80. Ke5 {[%emt 0:00:20]} Rg5+ {[%emt 0:00:10]} 81. Kd4 {[%emt 0:00:06]} Rg4 {[%emt 0:00:06]} 82. Rb8+ {[%emt 0:00:26]} Ka4 {[%emt 0:00:01]} 83. Kd5 {[%emt 0:00:23]} Ka3 {[%emt 0:00:01]} 84. Bd3 {[%emt 0:00:49]} Rb4 {[%emt 0:00:02]} 85. Rc8 {[%emt 0:00:33]} Kb3 {[%emt 0:00:13]} 86. Bc4+ {[%emt 0:00:32]} Kc3 {[%emt 0:00:26]} 87. Rc7 {[%emt 0:00:27]} Rb8 {[%emt 0:00:14]} 88. Kc5 {[%emt 0:00:28]} Rb4 {[%emt 0:00:31]} 89. Bd5 {[%emt 0:00:14]} Rb8 {[%emt 0:00:11]} 90. Rh7 {[%emt 0:00:16]} Rc8+ {[%emt 0:00:08]} 91. Bc6 {[%emt 0:00:03]} Rd8 {[%emt 0:00:11]} 92. Rh4 {[%emt 0:00:21]} Rc8 {[%emt 0:00:26]} 93. Rh3+ {[%emt 0:00:31]} Kd2 {[%emt 0:00:25]} 94. Kd5 {[%emt 0:00:18]} Rd8+ {[%emt 0:00:23]} 95. Ke4 {[%emt 0:00:11]} Rc8 {[%emt 0:00:21]} 96. Bd5 {[%emt 0:00:16]} Re8+ {[%emt 0:00:12]} 97. Kd4 {[%emt 0:00:10]} Rd8 {[%emt 0:00:08]} 98. Rh7 {[%emt 0:00:15]} Rd6 {[%emt 0:00:34]} 99. Ke4 {[%emt 0:00:44]} Rd8 {[%emt 0:00:08]} 100. Kd4 {[%emt 0:02:27]} Rd6 {[%emt 0:00:25]} 101. Rh2+ {[%emt 0:00:06]} Kd1 {[%emt 0:00:06]} 102. Ke4 {[%emt 0:00:11]} Kc1 {[%emt 0:00:15]} 103. Bc4 {[%emt 0:00:06]} Rd2 {[%emt 0:00:05]} 104. Rh3 {[%emt 0:00:11]} Kc2 {[%emt 0:00:36]} 105. Bd3+ {[%emt 0:00:15]} Kc3 {[%emt 0:00:16]} 106. Rg3 {[%emt 0:00:10]} Rh2 {[%emt 0:00:36]} 107. Be2+ {[%emt 0:00:43]} Kb4 {[%emt 0:00:08]} 108. Bg4 {[%emt 0:00:35]} Rd2 {[%emt 0:00:18]} 109. Rg1 {[%emt 0:00:13]} Kc3 {[%emt 0:00:39]} 110. Bf5 {[%emt 0:00:19]} Rh2 {[%emt 0:00:32]} 111. Rc1+ {[%emt 0:00:15]} Rc2 {[%emt 0:00:20]} 112. Rh1 {[%emt 0:00:05]} Rd2 {[%emt 0:01:14]} 113. Ke3 {[%emt 0:00:15]} Rg2 {[%emt 0:00:38]} 114. Rc1+ {[%emt 0:00:06]} Kb2 {[%emt 0:01:20]} 115. Rc8 {[%emt 0:00:20]} Rg5 {[%emt 0:01:29]} 116. Be4 {[%emt 0:00:18]} Kb3 {[%emt 0:00:20]} 117. Kd4 {[%emt 0:00:25]} Rg4 {[%emt 0:00:14]} 118. Rb8+ {[%emt 0:00:05]} Ka4 {[%emt 0:00:12]} 119. Rb1 {[%emt 0:00:15]} Rh4 {[%emt 0:00:09]} 120. Rh1 {[%emt 0:00:05]} Rxh1 {[%emt 0:00:04]} 121. Bxh1 {[%emt 0:00:32]} 1/2-1/2

[Event "III Menorca Open-A 2024"]
[Site "Ciutadella Menorca"]
[Date "2024.04.07"]
[Round "9.18"]
[White "Makkar, Rajat"]
[Black "Krzyzanowski, Marcin"]
[Result "0-1"]
[ECO "A13"]
[WhiteElo "2452"]
[BlackElo "2510"]
[Annotator "TA"]
[PlyCount "158"]
[EventDate "2024.04.02"]
[EventType "swiss"]
[EventCountry "ESP"]
[SourceTitle "playchess.com"]
[Source "ChessBase"]
[SourceQuality "1"]
[TimeControl "5400+30"]

{[%evp 14,158,12,18,23,29,28,18,21,14,20,19,16,32,25,18,16,14,27,20,55,61,80,56,81,79,54,54,80,68,114,117,128,122,116,111,147,129,128,125,133,121,152,0,131,132,125,-41,-28,-29,-31,-29,-33,-23,-24,-37,-27,-64,-6,-106,-93,-120,-9,-7,-6,-15,-7,-20,-8,-50,-29,-253,-16,-8,0,0,0,0,0,0,0,0,4,4,30,43,26,0,0,0,28,22,12,12,30,8,8,0,28,25,62,60,69,73,62,20,38,22,48,8,25,0,0,0,0,0,106,0,0,0,0,0,0,0,0,0,0,0,0,0,0,-522,-495,-29974,-29975,-29975,-29976,-29976,-29977,-29977,-29978,-29978,-29979,-29979,-29980,-29980,-29981]} 1. Nf3 {[%emt 0:00:07]} Nf6 {[%emt 0:00:11]} 2. c4 {[%emt 0:00:12]} e6 {[%emt 0:01:01]} 3. g3 {[%emt 0:00:12]} d5 {[%emt 0:01:17]} 4. Bg2 {[%emt 0:00:21]} d4 {[%emt 0:00:54]} 5. e3 {[%emt 0:01:15]} c5 {[%emt 0:00:45]} 6. exd4 {[%emt 0:00:26]} cxd4 {[%emt 0:00:03]} 7. O-O {[%emt 0:00:13]} Nc6 {[%emt 0:00:16]} 8. d3 {[%emt 0:00:14]} Bd6 {[%emt 0:01:43]} 9. Bg5 {[%emt 0:00:26]} h6 {[%emt 0:00:04]} 10. Bxf6 {[%emt 0:00:06]} Qxf6 {[%emt 0:00:01] The position is equal.} 11. Nbd2 {[%emt 0:00:29]} O-O {[%emt 0:00:06]} 12. Ne4 {[%emt 0:02:46][%csl LRd6,LRf6]} Qd8 {[%emt 0:00:03]} 13. Nxd6 {[%emt 0:04:00]} Qxd6 {[%emt 0:00:30]} 14. Re1 {[%emt 0:01:18]} Bd7 {[%emt 0:04:20]} 15. Qe2 {[%emt 0:03:12]} Rac8 {[%emt 0:08:53]} 16. a3 {[%emt 0:05:41]} Rfd8 {[%emt 0:05:22]} 17. b4 {[%emt 0:03:14]} b6 {[%emt 0:00:06]} 18. Qb2 {[%emt 0:05:57]} Be8 {[%emt 0:01:43]} 19. Re2 {[%emt 0:12:26]} Ne7 {[%emt 0:07:56]} 20. Re4 {[%emt 0:03:17][%cal Ob4b5]} Nf5 {[%emt 0:00:40]} 21. b5 {[%emt 0:01:11]} Qe7 {[%emt 0:02:29]} (21... f6 $14 {was preferrable.}) 22. Rae1 $16 {[%emt 0:02:30]} (22. Nxd4 $2 Nxd4 (22... Qf6 $2 23. Rg4 $19) 23. Kh1 (23. Rxd4 $2 Qf6 $19) 23... Nf5 $19) 22... Rc7 {[%emt 0:05:48]} 23. Bh3 {[%emt 0:04:17][%cal Oh3f5]} (23. Nxd4 $2 Rxd4 (23... Qf6 $2 24. Rf4 $17) 24. Re5 (24. Rxd4 $2 Qf6 $19) 24... Rxd3 25. Rxf5 Qxa3 (25... Rxa3 26. Bf1 $17) 26. Qxa3 Rxa3 $17) 23... Qf6 {[%emt 0:03:03][%cal Of5g3]} 24. Qe2 {[%emt 0:01:15]} Rc5 {[%emt 0:05:12]} 25. Ne5 {[%emt 0:05:38]} Kh7 {[%emt 0:09:21]} 26. Rf4 {[%emt 0:06:30]} Kg8 {[%emt 0:07:40]} 27. Qe4 {[%emt 0:05:27]} Nd6 {[%emt 0:10:32]} 28. Qe2 {[%emt 0:00:50]} Nf5 {[%emt 0:01:03]} 29. Bxf5 {[%emt 0:03:10]} exf5 {[%emt 0:00:07]} 30. Nf3 {[%emt 0:00:11] [#]} (30. g4 $16) 30... Bxb5 $1 $15 {[%emt 0:02:11]} 31. Qe7 {[%emt 0:09:43]} Qxe7 {[%emt 0:05:01]} 32. Rxe7 {[%emt 0:00:03]} Re8 {[%emt 0:01:22]} 33. Rxe8+ {[%emt 0:02:08]} Bxe8 {[%emt 0:00:01]} 34. Nxd4 {[%emt 0:00:28][%mdl 4096] Endgame. KRB-KRN} Ra5 {[%emt 0:00:29]} 35. Nxf5 {[%emt 0:01:46]} Rxa3 {[%emt 0:00:11]} ({Black should try} 35... Kf8 $15 36. g4 g6) 36. d4 {[%emt 0:00:45]} (36. Rd4 $11 {keeps the balance.}) 36... Bd7 {[%emt 0:01:18]} 37. Nd6 {[%emt 0:05:09] [#]} Rd3 {[%emt 0:00:30]} (37... f6 $1 $17 {Strongly threatening ...a5.} 38. Re4 a5) 38. Kf1 $11 {[%emt 0:00:30][%cal Of1e2] aiming for Ke2!} (38. Rxf7 $2 Bh3 39. f3 Rxd4 40. Rxa7 Rxd6 $19) 38... f6 {[%emt 0:00:30]} 39. Ke2 {[%emt 0:00:30]} Rb3 {[%emt 0:00:30]} 40. Re4 {[%emt 0:00:30]} Kf8 {[%emt 0:00:30]} 41. d5 {[%emt 0:03:51]} a5 {[%emt 0:06:46][%cal Ba7a5,Ba5a4,Ba4a3,Ba3a2][%mdl 32] ...a4 would now be deadly.} 42. Nb7 $2 {[%emt 0:00:25]} (42. Kd2 $11) 42... Bf5 $2 {[%emt 0:04:03]} (42... a4 $19 43. Kd2 a3) 43. Rd4 {[%emt 0:00:53]} a4 {[%emt 0:00:23] Hoping for ...a3.} 44. c5 $1 {[%emt 0:00:57]} bxc5 {[%emt 0:00:36]} 45. Nxc5 {[%emt 0:00:04]} Rb2+ {[%emt 0:00:03]} 46. Ke3 {[%emt 0:00:19][%cal Od5d6]} a3 {[%emt 0:00:46] ...Rb5 is the strong threat.} 47. Ra4 {[%emt 0:02:33]} a2 {[%emt 0:01:23]} 48. d6 {[%emt 0:00:20]} Rc2 {[%emt 0:02:00]} 49. Ra8+ {[%emt 0:02:15]} Kf7 {[%emt 0:00:01]} 50. Ra7+ {[%emt 0:01:18]} (50. d7 $5 Bxd7 51. Nxd7 $11) 50... Kf8 {[%emt 0:01:02]} 51. Ra8+ {[%emt 0:00:24]} Kf7 {[%emt 0:00:01]} 52. d7 {[%emt 0:00:20]} Bxd7 {[%emt 0:00:42]} 53. Nxd7 {[%emt 0:00:01] KRN-KR} Ke6 {[%emt 0:01:31]} 54. Nf8+ {[%emt 0:00:04]} Kf7 {[%emt 0:00:06]} 55. Nd7 {[%emt 0:00:02]} (55. h4 {simplifies} Rc1 56. Rxa2 Kxf8 57. Ra5) 55... Ke6 {[%emt 0:00:03]} 56. Ra7 {[%emt 0:00:11]} Rc8 {[%emt 0:02:04]} 57. Nb6 {[%emt 0:02:29]} Rc6 {[%emt 0:00:54]} 58. Na8 $1 {[%emt 0:00:03]} Rc2 {[%emt 0:00:17]} 59. Ra5 {[%emt 0:00:30]} (59. Rxg7 a1=Q (59... a1=B 60. Nc7+ Kd6 61. Nb5+ Ke6 62. Ra7 $16) 60. Nc7+ Rxc7 61. Rxc7 Qe5+ 62. Kf3 Qxc7 63. Ke4 Qc4+ (63... Qc1 64. h3 Qc2+ 65. Kd4 Qxf2+ 66. Kc4 Qxg3 67. Kd4 Qxh3 68. Kc4 Ke5 69. Kb5 Qc3 70. Kb6 Kd6 71. Kb7 Qb3+ 72. Ka8 Kc7 73. Ka7 Qb7#) 64. Ke3 Qc3+ 65. Ke2 Kf5 66. Kf1 Ke4 (66... Qa1+ 67. Kg2 Qd1 68. f3 Qe2+ 69. Kg1 Qxf3 70. h3 Ke4 71. h4 Qxg3+ 72. Kf1 Kf3 73. h5 Qf2#) 67. Kg2 Qf3+ 68. Kg1 Kd3 (68... Qd1+ 69. Kg2 Kd3 70. Kh3 Qf3 71. Kh4 f5 72. h3 f4 73. g4 Qd5 74. g5 Qxg5#) 69. h4 Ke2 (69... Qd1+ 70. Kg2 Ke2 71. g4 Qf1+ 72. Kg3 Qxf2+ 73. Kh3 Kf3 74. h5 Qg3#) 70. g4 Qxf2+ 71. Kh1 Kf3 72. h5 Qg2#) 59... g5 {[%emt 0:02:42]} 60. h4 {[%emt 0:00:14]} f5 {[%emt 0:00:27]} 61. Ra6+ {[%emt 0:01:48]} Kd5 {[%emt 0:00:28]} 62. h5 {[%emt 0:01:31][%cal Oe3d3]} (62. Rxh6 {is a self mate.} a1=Q (62... a1=B 63. Nb6+ Kc5 64. Na4+ Kd5 65. Ra6 $11) 63. Nb6+ Kc5 64. Nd7+ Kb5 65. Rb6+ Ka5) 62... Kc4 {[%emt 0:00:31]} 63. Nc7 {[%emt 0:00:49]} Kb3 {[%emt 0:00:31]} 64. Ne6 {[%emt 0:00:44] Nd4+ would kill now.} Rc3+ {[%emt 0:00:37]} (64... Kb2 $11) 65. Kd2 {[%emt 0:00:34]} (65. Kd4 $16 {And now Nc5+ would win.} Rc2 66. Nc5+ Kb4 67. Ra7 (67. Nd3+ Kb5 $11)) 65... Rc2+ {[%emt 0:00:13]} 66. Ke3 {[%emt 0:00:10] Intending Nd4+ and mate.} Kb2 {[%emt 0:00:58]} 67. Nd4 {[%emt 0:00:44][%csl LRc2,LRf5,LRh6] Wards off Rc6} f4+ {[%emt 0:00:31]} 68. gxf4 {[%emt 0:00:26]} gxf4+ {[%emt 0:00:01]} 69. Kd3 {[%emt 0:00:49]} Rxf2 {[%emt 0:00:33]} 70. Rb6+ {[%emt 0:00:05]} Kc1 {[%emt 0:00:28] ( -> ...Rd2+)} 71. Nb3+ {[%emt 0:00:48]} Kd1 {[%emt 0:00:06]} 72. Kc3 $2 {[%emt 0:01:18][%mdl 8192] [#] Prevents Rb2} (72. Rg6 $11 Rf3+ 73. Kc4) 72... Rc2+ $1 $19 {[%emt 0:00:44]} 73. Kd3 {[%emt 0:00:38]} (73. Kb4 $19 f3 74. Rd6+ Ke1 75. Re6+ Re2 76. Rc6 Re4+ 77. Ka3) 73... Rb2 {[%emt 0:00:22] Black mates.} 74. Ra6 {[%emt 0:00:41]} Rxb3+ {[%emt 0:00:05]} 75. Ke4 {[%emt 0:00:01]} Rb2 {[%emt 0:01:04]} 76. Kxf4 {[%emt 0:00:24]} Kc1 {[%emt 0:00:32]} 77. Kf5 {[%emt 0:00:45]} Rg2 {[%emt 0:00:15]} 78. Rc6+ {[%emt 0:00:19]} Kb1 {[%emt 0:00:08]} 79. Rb6+ {[%emt 0:00:05]} Rb2 {[%emt 0:00:06] Weighted Error Value: White=0.26 (precise) /Black=0.17 (very precise) .  Loses game:     	White=2     	---        Missed win:     	---       	Black=1      Mistake:       	White=4     	Black=4      Inaccurate:     	White=5     	Black=6      OK:         	White=26    	Black=22     Best:        	---       	Black=9      Strong:       	White=2     	Black=1      Brilliant:      	---       	Black=1} 0-1

[Event "III Menorca Open-A 2024"]
[Site "Ciutadella Menorca"]
[Date "2024.04.07"]
[Round "9.19"]
[White "Klimkowski, Jan"]
[Black "Audi Ameya"]
[Result "1/2-1/2"]
[ECO "B51"]
[WhiteElo "2505"]
[BlackElo "2387"]
[Annotator "TA"]
[PlyCount "54"]
[EventDate "2024.04.02"]
[EventType "swiss"]
[EventCountry "ESP"]
[SourceTitle "playchess.com"]
[Source "ChessBase"]
[SourceQuality "1"]
[TimeControl "5400+30"]

{[%evp 9,54,22,34,31,34,33,24,27,29,25,20,27,30,31,20,25,56,22,19,16,20,0,6,9,17,0,0,9,5,12,7,13,7,0,0,0,0,0,0,0,0,0,0,0,0,-6,-6]} 1. e4 {[%emt 0:00:02]} c5 {[%emt 0:00:41]} 2. Nf3 {[%emt 0:00:06]} d6 {[%emt 0:00:07]} 3. Bb5+ {[%emt 0:00:05]} Nd7 {[%emt 0:00:04]} 4. a4 {[%emt 1:32:17]} Ngf6 {[%emt 0:01:15]} 5. Nc3 {[%emt 0:00:00]} g6 {[%emt 0:00:47]} 6. O-O {[%emt 0:00:00]} a6 {[%emt 0:00:09]} 7. Be2 {[%emt 0:00:00]} b6 {[%emt 0:00:38]} 8. d4 {[%emt 0:00:00] White has an edge.} cxd4 {[%emt 0:00:07]} 9. Qxd4 {[%emt 0:00:00]} Bg7 {[%emt 0:03:38]} 10. e5 {[%emt 0:00:00]} dxe5 {[%emt 0:24:09]} 11. Nxe5 {[%emt 0:00:00]} Nxe5 {[%emt 0:00:03]} 12. Qxe5 {[%emt 0:00:00] [#] Black must now prevent Rd1.} Bb7 {[%emt 0:11:37]} 13. Be3 {[%emt 0:00:00]} O-O {[%emt 0:00:52][%cal Of6e4] The position is equal.} 14. Qg3 {[%emt 0:00:00]} Bc6 {[%emt 0:07:37]} 15. Bf3 {[%emt 0:00:00]} Bxf3 {[%emt 0:01:53]} 16. Qxf3 {[%emt 0:00:00]} Qc7 {[%emt 0:06:45]} 17. Rad1 {[%emt 0:00:00]} Rfd8 {[%emt 0:01:53]} 18. h3 {[%emt 0:00:00]} b5 {[%emt 0:02:23]} 19. axb5 {[%emt 0:00:00]} axb5 {[%emt 0:00:03]} 20. Nxb5 {[%emt 0:00:00][%cal Bc3b5,Bb5d4,Bd4c6][%mdl 32]} Qxc2 {[%emt 0:00:10]} 21. Nd4 {[%emt 0:00:00]} Qe4 {[%emt 0:00:18]} (21... Qxb2 $2 {loses.} 22. Nc6 Re8 23. Nxe7+ Kf8 24. Bc5 $18) 22. Qxe4 {[%emt 0:00:00]} Nxe4 {[%emt 0:00:04]} 23. Nc6 {[%emt 0:00:00][%csl LRd8,LRe7]} Rxd1 {[%emt 0:00:47]} 24. Rxd1 {[%emt 0:00:00]} Bxb2 {[%emt 0:01:17]} 25. Nxe7+ {[%emt 0:00:00]} Kg7 {[%emt 0:02:28]} 26. Nd5 {[%emt 0:00:00]} h5 {[%emt 0:02:43]} 27. h4 {[%emt 0:00:00]} Ra1 {[%emt 0:01:45] Weighted Error Value: White=0.06 (flawless) /Black=0.03 (flawless) .  Inaccurate:     	White=1     	Black=1      OK:         	White=7     	Black=12} 1/2-1/2